fUST/lending_fUST_20240722
["ID","MTS","AMOUNT","RATE_DAILY","PERIOD"]
[332876253,1721613041209,-500.0,0.00013698,2]
[332876254,1721613041218,-500.0,0.00013698,2]
[332876255,1721613041229,-522.32467591,0.00013698,2]
[332876256,1721613041240,-554.8,0.00013698,2]
[332876257,1721613041250,-550.22873202,0.00013698,2]
[332876258,1721613041261,-500.0,0.00013698,2]
[332876259,1721613041270,-500.0,0.00013698,2]
[332876260,1721613041281,-500.0,0.00013698,2]
[332876261,1721613041291,-500.0,0.00013698,2]
[332876262,1721613041300,-234.04,0.00013698,2]
[332876263,1721613041310,-502.6388518,0.00013698,2]
[332876264,1721613041321,-500.0,0.00013698,2]
[332876265,1721613041330,-251.48766632,0.00013698,2]
[332876266,1721613041340,-501.67652677,0.00013698,2]
[332876267,1721613041350,-502.92110573,0.00013698,2]
[332876268,1721613041359,-500.0,0.00013698,2]
[332876269,1721613041368,-500.0,0.00013698,2]
[332876270,1721613041378,-504.427741,0.00013698,2]
[332876271,1721613041387,-500.0,0.00013698,2]
[332876272,1721613041397,-286.80377951,0.00013698,2]
[332876273,1721613041406,-500.0,0.00013698,2]
[332876274,1721613041416,-500.0,0.00013698,2]
[332876275,1721613041426,-500.0,0.00013698,2]
[332876276,1721613041435,-500.0,0.00013698,2]
[332876277,1721613041445,-500.0,0.00013698,2]
[332876278,1721613041454,-505.05266424,0.00013698,2]
[332876279,1721613041465,-500.0,0.00013698,2]
[332876280,1721613041474,-500.0,0.00013698,2]
[332876281,1721613041484,-500.0,0.00013698,2]
[332876282,1721613041493,-500.0,0.00013698,2]
[332876283,1721613041503,-500.0,0.00013698,2]
[332876284,1721613041514,-500.0,0.00013698,2]
[332876285,1721613041524,-446.23,0.00013698,2]
[332876286,1721613041534,-500.0,0.00013698,2]
[332876287,1721613041543,-500.0,0.00013698,2]
[332876288,1721613041554,-504.6817247,0.00013698,2]
[332876289,1721613041564,-366.61,0.00013698,2]
[332876290,1721613041574,-557.52,0.00013698,2]
[332876291,1721613041583,-500.0,0.00013698,2]
[332876292,1721613041592,-500.0,0.00013698,2]
[332876293,1721613041601,-500.0,0.00013698,2]
[332876294,1721613041610,-500.0,0.00013698,2]
[332876295,1721613041619,-505.67448282,0.00013698,2]
[332876296,1721613041629,-500.0,0.00013698,2]
[332876297,1721613041638,-500.0,0.00013698,2]
[332876298,1721613041647,-500.0,0.00013698,2]
[332876299,1721613041657,-505.06878928,0.00013698,2]
[332876300,1721613041666,-500.0,0.00013698,2]
[332876301,1721613041675,-500.0,0.00013698,2]
[332876302,1721613041684,-500.0,0.00013698,2]
[332876303,1721613041694,-500.0,0.00013698,2]
[332876304,1721613041703,-216.29117427,0.00013698,2]
[332876305,1721613041712,-500.0,0.00013698,2]
[332876306,1721613041722,-500.0,0.00013698,2]
[332876307,1721613041731,-500.0,0.00013698,2]
[332876308,1721613041743,-500.0,0.00013698,2]
[332876309,1721613041753,-500.0,0.00013698,2]
[332876310,1721613041763,-500.0,0.00013698,2]
[332876311,1721613041773,-199.42290274,0.00013698,2]
[332876312,1721613041782,-504.28971247,0.00013698,2]
[332876313,1721613041791,-504.23846723,0.00013698,2]
[332876314,1721613041800,-504.4541237,0.00013698,2]
[332876315,1721613041809,-505.03987789,0.00013698,2]
[332876316,1721613041818,-500.0,0.00013698,2]
[332876317,1721613041827,-504.39536715,0.00013698,2]
[332876318,1721613041837,-563.65752757,0.00013698,2]
[332876319,1721613041846,-502.88470535,0.00013698,2]
[332876320,1721613041855,-500.0,0.00013698,2]
[332876321,1721613041864,-183.38236378,0.00013698,2]
[332876322,1721613041874,-500.0,0.00013698,2]
[332876323,1721613041885,-503.03252469,0.00013698,2]
[332876324,1721613041896,-505.7885831,0.00013698,2]
[332876325,1721613041907,-500.0,0.00013698,2]
[332876326,1721613041917,-500.0,0.00013698,2]
[332876327,1721613041926,-503.24673825,0.00013698,2]
[332876328,1721613041936,-503.89243339,0.00013698,2]
[332876329,1721613041946,-500.0,0.00013698,2]
[332876330,1721613041957,-502.51157685,0.00013698,2]
[332876331,1721613041968,-279.5,0.00013698,2]
[332876332,1721613041978,-500.0,0.00013698,2]
[332876333,1721613041987,-500.0,0.00013698,2]
[332876334,1721613041997,-500.0,0.00013698,2]
[332876335,1721613042007,-510.8358314,0.00013698,2]
[332876336,1721613042017,-280.73084436,0.00013698,2]
[332876337,1721613042028,-500.0,0.00013698,2]
[332876338,1721613042040,-452.7929542,0.00013698,2]
[332876339,1721613042050,-500.0,0.00013698,2]
[332876340,1721613042059,-500.0,0.00013698,2]
[332876341,1721613042069,-500.0,0.00013698,2]
[332876342,1721613042078,-503.40893604,0.00013698,2]
[332876343,1721613042087,-514.78887303,0.00013698,2]
[332876344,1721613042097,-565.75444883,0.00013698,2]
[332876345,1721613042105,-503.11579868,0.00013698,2]
[332876346,1721613042114,-500.0,0.00013698,2]
[332876347,1721613042123,-570.86750489,0.00013698,2]
[332876348,1721613042133,-500.0,0.00013698,2]
[332876349,1721613042142,-503.66300971,0.00013698,2]
[332876350,1721613042151,-566.88517477,0.00013698,2]
[332876351,1721613042161,-500.0,0.00013698,2]
[332876352,1721613042170,-221.84266664,0.00013698,2]
[332876353,1721613042179,-500.0,0.00013698,2]
[332876354,1721613042189,-500.0,0.00013698,2]
[332876355,1721613042198,-500.0,0.00013698,2]
[332876356,1721613042208,-500.0,0.00013698,2]
[332876357,1721613042217,-500.0,0.00013698,2]
[332876358,1721613042227,-500.0,0.00013698,2]
[332876359,1721613042238,-505.33330674,0.00013698,2]
[332876360,1721613042249,-500.0,0.00013698,2]
[332876361,1721613042259,-500.0,0.00013698,2]
[332876362,1721613042269,-518.26231982,0.00013698,2]
[332876363,1721613042279,-201.96832673,0.00013698,2]
[332876364,1721613042291,-500.0,0.00013698,2]
[332876365,1721613042301,-500.0,0.00013698,2]
[332876366,1721613042310,-477.06218715,0.00013698,2]
[332876367,1721613042322,-186.21736128,0.00013698,2]
[332876368,1721613042331,-500.0,0.00013698,2]
[332876369,1721613042341,-500.0,0.00013698,2]
[332876371,1721613042350,-500.0,0.00013698,2]
[332876372,1721613042359,-505.43706925,0.00013698,2]
[332876373,1721613042369,-500.0,0.00013698,2]
[332876374,1721613042378,-312.62125749,0.00013698,2]
[332876375,1721613042387,-500.0,0.00013698,2]
[332876376,1721613042396,-500.0,0.00013698,2]
[332876377,1721613042405,-500.0,0.00013698,2]
[332876378,1721613042414,-500.0,0.00013698,2]
[332876379,1721613042423,-500.0,0.00013698,2]
[332876380,1721613042433,-500.0,0.00013698,2]
[332876381,1721613042442,-500.0,0.00013698,2]
[332876382,1721613042451,-500.0,0.00013698,2]
[332876383,1721613042461,-230.17950414,0.00013698,2]
[332876384,1721613042470,-500.0,0.00013698,2]
[332876385,1721613042479,-465.96774689,0.00013698,2]
[332876386,1721613042490,-796.06180076,0.00013698,2]
[332876387,1721613042499,-500.0,0.00013698,2]
[332876388,1721613042510,-796.06180076,0.00013698,2]
[332876389,1721613042520,-500.0,0.00013698,2]
[332876390,1721613042530,-796.06180076,0.00013698,2]
[332876391,1721613042540,-500.0,0.00013698,2]
[332876392,1721613042549,-796.06180076,0.00013698,2]
[332876393,1721613042561,-472.3875729,0.00013698,2]
[332876394,1721613042570,-796.06180076,0.00013698,2]
[332876395,1721613042579,-796.06180076,0.00013698,2]
[332876396,1721613042590,-796.06180076,0.00013698,2]
[332876397,1721613042600,-796.06180076,0.00013698,2]
[332876398,1721613042609,-500.0,0.00013698,2]
[332876399,1721613042619,-796.06180076,0.00013698,2]
[332876400,1721613042628,-500.0,0.00013698,2]
[332876401,1721613042640,-500.0,0.00013698,2]
[332876403,1721613042809,-413.26393712,0.00013698,2]
[332876404,1721613042820,-500.0,0.00013698,2]
[332876405,1721613042830,-796.06180076,0.00013698,2]
[332876406,1721613042840,-796.06180076,0.00013698,2]
[332876407,1721613042850,-205.6476569,0.00013698,2]
[332876408,1721613042861,-500.0,0.00013698,2]
[332876409,1721613042871,-500.0,0.00013698,2]
[332876410,1721613042880,-500.0,0.00013698,2]
[332876411,1721613042890,-196.61937662,0.00013698,2]
[332876412,1721613042900,-500.0,0.00013698,2]
[332876413,1721613042909,-500.0,0.00013698,2]
[332876414,1721613042919,-500.0,0.00013698,2]
[332876415,1721613042928,-500.0,0.00013698,2]
[332876416,1721613042937,-500.0,0.00013698,2]
[332876417,1721613042947,-500.0,0.00013698,2]
[332876418,1721613042957,-500.0,0.00013698,2]
[332876419,1721613042967,-500.0,0.00013698,2]
[332876420,1721613042976,-500.0,0.00013698,2]
[332876422,1721613042987,-500.0,0.00013698,2]
[332876424,1721613042997,-500.0,0.00013698,2]
[332876426,1721613043007,-196.25496413,0.00013698,2]
[332876427,1721613043018,-500.0,0.00013698,2]
[332876428,1721613043030,-500.0,0.00013698,2]
[332876430,1721613043041,-500.0,0.00013698,2]
[332876431,1721613043053,-324.39203154,0.00013698,2]
[332876432,1721613043065,-500.0,0.00013698,2]
[332876433,1721613043074,-500.0,0.00013698,2]
[332876434,1721613043083,-500.0,0.00013698,2]
[332876435,1721613043093,-500.0,0.00013698,2]
[332876436,1721613043102,-500.0,0.00013698,2]
[332876437,1721613043112,-500.0,0.00013698,2]
[332876438,1721613043121,-500.0,0.00013698,2]
[332876439,1721613043130,-500.0,0.00013698,2]
[332876440,1721613043144,-500.0,0.00013698,2]
[332876441,1721613043157,-500.0,0.00013698,2]
[332876442,1721613043168,-500.0,0.00013698,2]
[332876443,1721613043180,-500.0,0.00013698,2]
[332876444,1721613043190,-500.0,0.00013698,2]
[332876445,1721613043201,-500.0,0.00013698,2]
[332876446,1721613043212,-500.0,0.00013698,2]
[332876447,1721613043223,-500.0,0.00013698,2]
[332876448,1721613043237,-500.0,0.00013698,2]
[332876449,1721613043247,-500.0,0.00013698,2]
[332876450,1721613043258,-500.0,0.00013698,2]
[332876451,1721613043268,-500.0,0.00013698,2]
[332876452,1721613043279,-500.0,0.00013698,2]
[332876453,1721613043289,-500.0,0.00013698,2]
[332876454,1721613043299,-500.0,0.00013698,2]
[332876455,1721613043309,-500.0,0.00013698,2]
[332876456,1721613043320,-500.0,0.00013698,2]
[332876457,1721613043330,-500.0,0.00013698,2]
[332876458,1721613043340,-500.0,0.00013698,2]
[332876459,1721613043351,-500.0,0.00013698,2]
[332876460,1721613043363,-500.0,0.00013698,2]
[332876461,1721613043374,-500.0,0.00013698,2]
[332876462,1721613043386,-500.0,0.00013698,2]
[332876463,1721613043396,-500.0,0.00013698,2]
[332876464,1721613043408,-500.0,0.00013698,2]
[332876465,1721613043420,-1139.777182,0.00013699,2]
[332876466,1721613043431,-3000.0,0.00013699,2]
[332876467,1721613043442,-585.93209491,0.00013972,2]
[332876468,1721613043453,-500.0,0.00013972,2]
[332876469,1721613043464,-352.9473346,0.00013972,2]
[332876470,1721613043475,-500.0,0.00013972,2]
[332876471,1721613043485,-916.5,0.00013972,2]
[332876472,1721613043496,-550.84903723,0.00013972,2]
[332876473,1721613043508,-507.1360282,0.00013972,2]
[332876474,1721613043519,-509.75564671,0.00013972,2]
[332876475,1721613043528,-500.0,0.00013972,2]
[332876476,1721613043540,-427.33226804,0.00013972,2]
[332876477,1721613043551,-504.77380926,0.00013972,2]
[332876478,1721613043562,-504.65469246,0.00013972,2]
[332876479,1721613043573,-509.80431893,0.00013972,2]
[332876480,1721613043583,-303.15731928,0.00013972,2]
[332876481,1721613043594,-508.46623507,0.00013972,2]
[332876482,1721613043605,-181.53666781,0.00013972,2]
[332876483,1721613043615,-1346.26,0.00013972,2]
[332876484,1721613043625,-408.26217424,0.00013972,2]
[332876485,1721613043636,-546.80856493,0.00013972,2]
[332876486,1721613043647,-500.0,0.00013972,2]
[332876487,1721613043658,-517.00731958,0.00013972,2]
[332876488,1721613043668,-390.97803955,0.00013972,2]
[332876489,1721613043679,-346.02749396,0.00013972,2]
[332876490,1721613043689,-554.30665554,0.00013972,2]
[332876491,1721613043699,-500.0,0.00013972,2]
[332876492,1721613043709,-857.38,0.00013972,2]
[332876493,1721613043718,-513.71621336,0.00013972,2]
[332876494,1721613043728,-534.77742394,0.00013972,2]
[332876495,1721613043739,-228.23016222,0.00013972,2]
[332876496,1721613043751,-500.0,0.00013972,2]
[332876497,1721613043761,-393.1146956,0.00013972,2]
[332876498,1721613043772,-500.0,0.00013972,2]
[332876499,1721613043782,-500.0,0.00013972,2]
[332876500,1721613043792,-374.55485305,0.00013972,2]
[332876501,1721613043802,-355.60723315,0.00013972,2]
[332876502,1721613043812,-366.61,0.00013972,2]
[332876503,1721613043822,-316.07847082,0.00013972,2]
[332876504,1721613043833,-526.44028776,0.00013972,2]
[332876505,1721613043844,-500.0,0.00013972,2]
[332876506,1721613043854,-502.67975774,0.00013972,2]
[332876507,1721613043864,-504.90364634,0.00013972,2]
[332876508,1721613043874,-505.17172278,0.00013972,2]
[332876509,1721613043884,-506.18152039,0.00013972,2]
[332876510,1721613043895,-504.456624,0.00013972,2]
[332876511,1721613043905,-500.0,0.00013972,2]
[332876512,1721613043916,-508.65367248,0.00013972,2]
[332876513,1721613043926,-531.50558207,0.00013972,2]
[332876514,1721613043937,-503.90397605,0.00013972,2]
[332876515,1721613043947,-538.3886222,0.00013972,2]
[332876516,1721613043957,-500.0,0.00013972,2]
[332876517,1721613043968,-500.0,0.00013972,2]
[332876518,1721613043978,-506.46933819,0.00013972,2]
[332876519,1721613043988,-504.87220212,0.00013972,2]
[332876520,1721613043999,-393.37612131,0.00013972,2]
[332876521,1721613044011,-470.28002087,0.00013972,2]
[332876522,1721613044020,-500.0,0.00013972,2]
[332876523,1721613044029,-500.0,0.00013972,2]
[332876524,1721613044040,-500.0,0.00013972,2]
[332876525,1721613044051,-500.0,0.00013972,2]
[332876526,1721613044062,-435.54903973,0.00013972,2]
[332876527,1721613044072,-500.0,0.00013972,2]
[332876528,1721613044082,-500.0,0.00013972,2]
[332876529,1721613044092,-500.0,0.00013972,2]
[332876530,1721613044102,-508.24205498,0.00013972,2]
[332876531,1721613044112,-500.0,0.00013972,2]
[332876532,1721613044122,-466.08530162,0.00013972,2]
[332876533,1721613044132,-500.0,0.00013972,2]
[332876534,1721613044142,-412.51427903,0.00013972,2]
[332876535,1721613044151,-500.0,0.00013972,2]
[332876536,1721613044161,-500.0,0.00013972,2]
[332876537,1721613044170,-165.28,0.00013972,2]
[332876538,1721613044180,-173.97058623,0.00013972,2]
[332876539,1721613044189,-629.57450782,0.00013972,2]
[332876540,1721613044199,-492.95986557,0.00013972,2]
[332876541,1721613044209,-532.22858355,0.00013972,2]
[332876542,1721613044218,-503.04757378,0.00013972,2]
[332876543,1721613044229,-282.76921526,0.00013972,2]
[332876544,1721613044241,-328.50859414,0.00013972,2]
[332876545,1721613044251,-223.24,0.00013972,2]
[332876546,1721613044261,-500.0,0.00013972,2]
[332876547,1721613044271,-504.96138184,0.00013972,2]
[332876548,1721613044283,-500.0,0.00013972,2]
[332876549,1721613044292,-500.0,0.00013972,2]
[332876550,1721613044302,-500.0,0.00013972,2]
[332876551,1721613044311,-500.0,0.00013972,2]
[332876552,1721613044322,-192.24743884,0.00013972,2]
[332876553,1721613044332,-500.0,0.00013972,2]
[332876554,1721613044342,-588.66,0.00013972,2]
[332876555,1721613044352,-458.19,0.00013972,2]
[332876556,1721613044362,-500.0,0.00013972,2]
[332876557,1721613044372,-501.59039261,0.00013972,2]
[332876558,1721613044382,-214.75115672,0.00013972,2]
[332876559,1721613044971,-285.24884328,0.00013972,2]
[332876560,1721613044981,-500.0,0.00013972,2]
[332876561,1721613044991,-500.0,0.00013972,2]
[332876562,1721613045001,-500.0,0.00013972,2]
[332876563,1721613045012,-162.65005554,0.00013972,2]
[332876564,1721613045022,-516.05163371,0.00013972,2]
[332876565,1721613045032,-500.0,0.00013972,2]
[332876566,1721613045042,-500.0,0.00013972,2]
[332876567,1721613045052,-500.0,0.00013972,2]
[332876568,1721613045062,-500.0,0.00013972,2]
[332876569,1721613045072,-500.0,0.00013972,2]
[332876570,1721613045082,-180.76427088,0.00013972,2]
[332876571,1721613045092,-421.28,0.00013972,2]
[332876572,1721613045102,-150.112233,0.00014,4]
[332876573,1721613045112,-150.112233,0.00014,2]
[332876574,1721613045121,-153.681858,0.00014225,2]
[332876575,1721613045131,-154.274774,0.00014225,2]
[332876576,1721613045142,-298.47911728,0.00014225,2]
[332876577,1721613045151,-151.0,0.00014225,2]
[332876578,1721613045162,-500.0,0.00014246,2]
[332876579,1721613045172,-432.14280647,0.00014246,2]
[332876580,1721613045182,-916.5,0.00014246,2]
[332876581,1721613045192,-500.0,0.00014246,2]
[332876582,1721613045203,-1346.26,0.00014246,2]
[332876583,1721613045212,-181.91316994,0.00014246,2]
[332876584,1721613045222,-500.0,0.00014246,2]
[332876585,1721613045234,-857.38,0.00014246,2]
[332876586,1721613045246,-182.87346973,0.00014246,2]
[332876587,1721613045256,-500.0,0.00014246,2]
[332876588,1721613045269,-220.52378525,0.00014246,2]
[332876589,1721613045280,-500.0,0.00014246,2]
[332876590,1721613045290,-500.0,0.00014246,2]
[332876591,1721613045302,-503.80220381,0.00014246,2]
[332876592,1721613045313,-500.0,0.00014246,2]
[332876593,1721613045324,-500.0,0.00014246,2]
[332876594,1721613045333,-500.0,0.00014246,2]
[332876595,1721613045343,-500.0,0.00014246,2]
[332876596,1721613045352,-500.0,0.00014246,2]
[332876597,1721613045361,-505.84297291,0.00014246,2]
[332876598,1721613045371,-500.0,0.00014246,2]
[332876599,1721613045381,-500.0,0.00014246,2]
[332876600,1721613045390,-625.08614798,0.00014246,2]
[332876601,1721613045400,-500.0,0.00014246,2]
[332876602,1721613045410,-552.37938176,0.00014246,2]
[332876603,1721613045420,-500.0,0.00014246,2]
[332876604,1721613045430,-500.0,0.00014246,2]
[332876605,1721613045439,-151.32587,0.00014246,2]
[332876606,1721613045449,-500.0,0.00014246,2]
[332876607,1721613045459,-500.0,0.00014246,2]
[332876608,1721613045469,-500.0,0.00014246,2]
[332876609,1721613045479,-500.0,0.00014246,2]
[332876610,1721613045489,-506.04,0.00014246,2]
[332876611,1721613045500,-500.0,0.00014246,2]
[332876612,1721613045511,-500.0,0.00014246,2]
[332876613,1721613045520,-206.08,0.00014246,2]
[332876614,1721613045530,-187.5,0.00014247,2]
[332876615,1721613045540,-712.5,0.00014247,2]
[332876616,1721613045550,-150.112233,0.000143,3]
[332876617,1721613045559,-151.285,0.00014397,2]
[332876619,1721613045569,-505.0,0.00014397,2]
[332876621,1721613045578,-1409.0,0.00014397,2]
[332876623,1721613045588,-500.0,0.0001452,2]
[332876625,1721613045598,-916.5,0.0001452,2]
[332876628,1721613045607,-500.0,0.0001452,2]
[332876631,1721613045617,-1346.26,0.0001452,2]
[332876635,1721613045627,-440.90758754,0.0001452,2]
[332876637,1721613045637,-857.38,0.0001452,2]
[332876639,1721613045646,-500.0,0.0001452,2]
[332876641,1721613045656,-500.0,0.0001452,2]
[332876643,1721613045666,-500.0,0.0001452,2]
[332876645,1721613045676,-500.0,0.0001452,2]
[332876647,1721613045686,-500.0,0.0001452,2]
[332876649,1721613045696,-500.0,0.0001452,2]
[332876651,1721613045706,-500.0,0.0001452,2]
[332876653,1721613045715,-500.0,0.0001452,2]
[332876655,1721613045727,-608.92,0.0001452,2]
[332876668,1721613045832,-244.59973433,0.0001452,2]
[332876669,1721613045841,-500.0,0.0001452,2]
[332876670,1721613045851,-392.23,0.0001452,2]
[332876671,1721613045859,-500.0,0.0001452,2]
[332876672,1721613045868,-269.46,0.0001452,2]
[332876673,1721613045877,-485.60133313,0.0001452,2]
[332876674,1721613045886,-355.63183445,0.0001452,2]
[332876675,1721613045898,-500.0,0.0001452,2]
[332876676,1721613045907,-500.0,0.0001452,2]
[332876677,1721613045916,-1037.17291782,0.00014554,2]
[332876678,1721613045925,-2373.93949028,0.00014629,2]
[332876679,1721613045934,-150.112233,0.000147,2]
[332876680,1721613045944,-505.27145167,0.00014794,2]
[332876681,1721613045954,-916.5,0.00014794,2]
[332876682,1721613045963,-323.4100023,0.00014794,2]
[332876683,1721613045971,-1346.26,0.00014794,2]
[332876684,1721613045980,-857.38,0.00014794,2]
[332876685,1721613045989,-500.0,0.00014794,2]
[332876686,1721613045999,-465.08526089,0.00014794,2]
[332876687,1721613046009,-189.8,0.00014794,2]
[332876691,1721613046018,-419.64907718,0.00014794,2]
[332876694,1721613046028,-500.0,0.00014794,2]
[332876698,1721613046037,-500.0,0.00014794,2]
[332876701,1721613046047,-158.37675469,0.00014794,2]
[332876704,1721613046056,-290.3705009,0.00014794,2]
[332876707,1721613046065,-500.0,0.00014794,2]
[332876710,1721613046076,-500.0,0.00014794,2]
[332876712,1721613046085,-165.0,0.00014795,2]
[332876715,1721613046094,-500.0,0.0001489,7]
[332876718,1721613046104,-500.0,0.0001489,7]
[332876721,1721613046113,-500.0,0.0001489,7]
[332876723,1721613046122,-500.0,0.0001489,7]
[332876725,1721613046132,-255.21,0.0001489,7]
[332876727,1721613046141,-1151.78648237,0.00014989,2]
[332876729,1721613046151,-150.112233,0.00015,2]
[332876731,1721613046160,-916.5,0.00015068,2]
[332876733,1721613046169,-857.38,0.00015068,2]
[332876735,1721613046178,-539.71910444,0.00015068,2]
[332876737,1721613046187,-506.77493479,0.00015068,2]
[332876739,1721613046197,-312.14198999,0.00015068,2]
[332876741,1721613046207,-344.6243852,0.00015068,2]
[332876743,1721613046216,-167.0,0.0001528,2]
[332876744,1721613046226,-916.5,0.00015342,2]
[332876745,1721613046235,-857.38,0.00015342,2]
[332876747,1721613046247,-367.39222983,0.00015353,2]
[332876750,1721613046258,-150.112233,0.000154,5]
[332876753,1721613046268,-1000.0,0.000155,2]
[332876756,1721613046277,-1037.17291782,0.0001551,2]
[332876758,1721613046287,-378.8357213,0.0001555,2]
[332876761,1721613046297,-2000.0,0.00015596,2]
[332876764,1721613046306,-2000.0,0.00015605,2]
[332876767,1721613046315,-151.0,0.00015608,2]
[332876768,1721613046326,-152.7937,0.00015608,2]
[332876771,1721613046336,-151.0,0.00015608,2]
[332876773,1721613046346,-151.0,0.00015608,2]
[332876774,1721613046357,-151.0,0.00015608,2]
[332876776,1721613046366,-151.0,0.00015608,2]
[332876778,1721613046375,-5304.84073988,0.00015614,2]
[332876780,1721613046385,-916.5,0.00015616,2]
[332876782,1721613046394,-857.38,0.00015616,2]
[332876784,1721613046405,-2373.93949028,0.00015659,2]
[332876786,1721613046414,-585.133898,0.000157,6]
[332876788,1721613046425,-11980.04982988,0.00015708,2]
[332876790,1721613046435,-7107.82996949,0.00015708,2]
[332876792,1721613046444,-1500.0,0.00015708,2]
[332876794,1721613046454,-4924.38613709,0.00015708,2]
[332876796,1721613046463,-1762.32290703,0.00015708,2]
[332876798,1721613046473,-4248.79961277,0.00015708,2]
[332876801,1721613046482,-1696.56734291,0.00015708,2]
[332876803,1721613046491,-2811.0007313,0.00015708,2]
[332876806,1721613046503,-3774.60857808,0.00015708,2]
[332876809,1721613046514,-944.65886484,0.00015708,2]
[332876812,1721613046523,-4076.00622126,0.00015708,2]
[332876815,1721613046533,-5200.03784169,0.00015708,2]
[332876818,1721613046542,-3125.89800332,0.00015708,2]
[332876820,1721613046552,-152.18122,0.00015708,2]
[332876823,1721613046561,-500.0,0.00015708,2]
[332876826,1721613046571,-53052.70811435,0.00015709,2]
[332876829,1721613046581,-49028.65425379,0.00015709,2]
[332876832,1721613046591,-151.0,0.00015709,2]
[332876834,1721613046601,-151.0,0.00015709,2]
[332876836,1721613046610,-153.143764,0.00015709,2]
[332876838,1721613046620,-151.0,0.00015709,2]
[332876840,1721613046630,-395.271157,0.00015709,2]
[332876842,1721613046639,-395.271157,0.00015709,2]
[332876844,1721613046648,-151.0,0.00015709,2]
[332876846,1721613046658,-151.0,0.00015709,2]
[332876848,1721613046667,-151.0,0.00015709,2]
[332876850,1721613046676,-151.0,0.00015709,2]
[332876852,1721613046685,-646.58932412,0.00015739,2]
[332876854,1721613046695,-80611.97829408,0.00015744,2]
[332876855,1721613046704,-226.809203,0.00015851,2]
[332876857,1721613046714,-151.0,0.00015851,2]
[332876860,1721613046724,-159.24022,0.00015851,2]
[332876863,1721613046734,-151.0,0.00015851,2]
[332876866,1721613046743,-500.0,0.00015878,2]
[332876868,1721613046753,-500.0,0.00015878,2]
[332876870,1721613046764,-500.0,0.00015878,2]
[332876871,1721613046774,-500.0,0.00015879,2]
[332876873,1721613046783,-500.0,0.00015879,2]
[332876874,1721613046792,-500.0,0.00015879,2]
[332876875,1721613046801,-500.0,0.00015879,2]
[332876876,1721613046810,-500.0,0.00015879,2]
[332876878,1721613046820,-500.0,0.00015879,2]
[332876880,1721613046829,-500.0,0.00015879,2]
[332876882,1721613046839,-531.04,0.00015879,2]
[332876884,1721613046848,-300.46850058,0.0001589,2]
[332876886,1721613046859,-1011.22,0.0001589,2]
[332876888,1721613046868,-500.0,0.0001589,2]
[332876890,1721613046878,-521.74,0.0001589,2]
[332876892,1721613046887,-1538.99,0.0001589,2]
[332876893,1721613046897,-1744.99,0.0001589,2]
[332876894,1721613046907,-500.0,0.0001589,2]
[332876895,1721613046917,-500.0,0.0001589,2]
[332876896,1721613046927,-10125.34,0.0001589,2]
[332876897,1721613046937,-923.66,0.0001589,2]
[332876898,1721613046947,-767.77,0.0001589,2]
[332876899,1721613046957,-4491.18,0.0001589,2]
[332876900,1721613046966,-1883.32,0.0001589,2]
[332876901,1721613046975,-556.62,0.0001589,2]
[332876902,1721613046986,-525.8054531,0.0001589,2]
[332876903,1721613046995,-500.0,0.0001589,2]
[332876904,1721613047005,-500.0,0.0001589,2]
[332876905,1721613047017,-710.76,0.0001589,2]